Workbook

Sheet User Inputs
C2: Which access route do you wish to model? (select drop-down) | E2: e-consult first | I2: ='Output - Chart'!$O$2 -> e-consult first compared to conventional: Impact on primary care workload
C4: ="Select the x-axis for the chart (" &E2 &" variables in blue)" -> Select the x-axis for the chart (e-consult first variables in blue) | E4: Phone via e-consult
C5: ="Select the legend for the chart (" &E2 &" variables in blue)" -> Select the legend for the chart (e-consult first variables in blue) | E5: e-consult supply-related demand
C7: Alternative Access Route Variables | E7: e-consult first | F7: telephone first | G7: video first
C8: Access rate: % of consultations initially requested in this way | E8: 1 | F8: 1 | G8: 0.9
C9: Completion rate: % of digital consultations completed without needing a subsequent consultation | E9: 0.3 | F9: 0.8 | G9: 0.65
C10: n | D10: Phone via e-consult: Of those having a real-time consultation after e-consult, % having phone rather than F2F consultation | E10: 0.9
C11: Consultation Duration: Average time spent by GP on this type of consultation (minutes) | E11: 4 | F11: 5 | G11: 9
C12: Supply-related demand: % of digital consultations which are additional demand compared with a conventional appointment system | E12: 0.05 | F12: 0 | G12: 0
C14: Conventional care Variables
C15: % of conventional consultations managed by telephone | E15: 0.14
C16: Duration of face to face consultation (minutes) | E16: 9

Sheet Upper and Lower Limits (hidden)
T2: 0 | U2: 1 | V2: 2
G3: e-consult first | J3: Telephone first | M3: Video first | P3: Conventional (telephone as exception) | T3: =MATCH(AltCon_txt,$J$3:$O$3,0)+T2 ->  | U3: =MATCH(AltCon_txt,$J$3:$O$3,0)+U2 ->  | V3: =MATCH(AltCon_txt,$J$3:$O$3,0)+V2 -> 
F4: Row headings for tel/video | G4: base case | H4: lower estimate | I4: upper estimate | J4: base case | K4: lower estimate | L4: upper estimate | M4: base case | N4: lower estimate | O4: upper estimate | P4: base case | Q4: lower estimate | R4: upper estimate | S4: Row headings for e-consult | T4: base case | U4: lower estimate | V4: upper estimate
A5: Alt-Con Access rate: % of consultations managed using the new access route | C5: E1/X1 | D5: Access Rate | F5: ="Tel/video " &D5 -> Tel/video Access Rate | G5: ='User Inputs'!E8 -> 1 | H5: 0.0001 | I5: 1 | J5: ='User Inputs'!F8 -> 1 | K5: 0.0001 | L5: 1 | M5: ='User Inputs'!G8 -> 0.9 | N5: 0.0001 | O5: 1 | P5: ='User Inputs'!E15 -> 0.14 | Q5: =P5 -> 0.14 | R5: =Q5 -> 0.14 | S5: e-consult access rate | T5: =IF(AltCon_txt="e-consult first", J5,INDEX($J5:$O5,1,T$3)) -> 1 | U5: 0.0001 | V5: 1
A6: Alt-con completion rate: % of consultations managed in new way without any further assessment | C6: E3/X3 | D6: Completion Rate | F6: Tel/video Completion Rate | G6: ='User Inputs'!E9 -> 0.3 | H6: 0.1 | I6: 0.9 | J6: ='User Inputs'!F9 -> 0.8 | K6: 0.1 | L6: 0.9 | M6: ='User Inputs'!G9 -> 0.65 | N6: 0.1 | O6: 0.9 | P6: =J6 -> 0.8 | Q6: =K6 -> 0.1 | R6: =L6 -> 0.9 | S6: e-consult completion rate | T6: 0.8 | U6: 0.1 | V6: 0.9
A7: Of those having a real-time consultation after e-consult, % having phone consultation | C7: (X1)e | D7: Phone via e-consult | G7: ='User Inputs'!E10 -> 0.9 | H7: 0.3 | I7: 1 | S7: =D7 -> Phone via e-consult
A8: Alt-con time: Average time spent by GP on alternative format | C8: E2/X2 | D8: Consultation Duration | F8: Tel/video Consultation Duration | G8: ='User Inputs'!E11 -> 4 | H8: 2 | I8: 5 | J8: ='User Inputs'!F11 -> 5 | K8: 4 | L8: 6 | M8: ='User Inputs'!G11 -> 9 | N8: 6 | O8: 15 | P8: =J8 -> 5 | Q8: =K8 -> 4 | R8: =L8 -> 6 | S8: e-consult consultation duration | T8: =IF(AltCon_txt="e-consult first", J8,INDEX($J8:$O8,1,T$3)) -> 5 | U8: 4 | V8: 6
A9: Supply-induced demand: % of alternative form consultations which are new demand | C9: E5/X5 | D9: Supply-related demand | F9: Tel/video Supply-related demand | G9: ='User Inputs'!E12 -> 0.05 | H9: -0.1 | I9: 0.2 | J9: ='User Inputs'!F12 -> 0 | K9: -0.1 | L9: 0.2 | M9: ='User Inputs'!G12 -> 0 | N9: -0.1 | O9: 0.2 | P9: 0 | Q9: 0 | R9: 0 | S9: e-consult supply-related demand | T9: 0 | U9: -0.1 | V9: 0.2
A10: GP F2F time: Average time spent by GP on conventional face to face consultation (minutes) | C10: F1 | D10: GP F2F time | G10: =$P10 -> 9 | H10: =$P10 -> 9 | I10: 9 | J10: 9 | K10: 9 | L10: 9 | M10: 9 | N10: 9 | O10: 9 | P10: ='User Inputs'!E16 -> 9 | Q10: =P10 -> 9 | R10: =P10 -> 9 | T10: 9 | U10: 9 | V10: 9
D13: e-consult first
D14: =J3 -> Telephone first
D15: =M3 -> Video first
A16: Named ranges and contents of drop-downs ----> | F16: Default variables | G16: e-consult first | H16: telephone first | I16: video first
D17: Yes | F17: X1 | G17: 1 | H17: 1 | I17: 0.9
D18: No | F18: X2 | G18: 0.3 | H18: 0.8 | I18: 0.65
F19: X1(e) | G19: 0.9
D20: =IF(AltCon_txt="e-consult first",'Upper and Lower Limits'!S5,'Upper and Lower Limits'!F5) -> e-consult access rate | F20: X3 | G20: 4 | H20: 5 | I20: 9
D21: =IF(AltCon_txt="e-consult first",'Upper and Lower Limits'!S6,'Upper and Lower Limits'!F6) -> e-consult completion rate | F21: X4 | G21: 0.05 | H21: 0 | I21: 0
D22: =IF(AltCon_txt="e-consult first",'Upper and Lower Limits'!S7,'Upper and Lower Limits'!F8) -> Phone via e-consult
D23: =IF(AltCon_txt="e-consult first",'Upper and Lower Limits'!S8,'Upper and Lower Limits'!F9) -> e-consult consultation duration
D24: =IF(AltCon_txt="e-consult first",'Upper and Lower Limits'!S9,"") -> e-consult supply-related demand | F24: F1 | G24: 0.14
F25: F2 | G25: 9

Sheet Sensitivity Analysis (hidden)
L6: s=lower estimate | W6: s=lower mid estimate | AH6: s=base case estimate | AS6: s=upper mid | BD6: s=upper
D7: variable | E7: Alternative Consultation Variables | F7: base case | G7: lower estimate | H7: upper estimate | I7: lower-mid estimate | J7: upper-mid estimate | K7: increment | L7: 1 | M7: 2 | N7: 3 | O7: 4 | P7: 5 | Q7: 6 | R7: 7 | S7: 8 | T7: 9 | U7: 10 | V7: 11 | W7: 1 | X7: 2 | Y7: 3 | Z7: 4 | AA7: 5 | AB7: 6 | AC7: 7 | AD7: 8 | AE7: 9 | AF7: 10 | AG7: 11 | AH7: 1 | AI7: 2 | AJ7: 3 | AK7: 4 | AL7: 5 | AM7: 6 | AN7: 7 | AO7: 8 | AP7: 9 | AQ7: 10 | AR7: 11 | AS7: 1 | AT7: 2 | AU7: 3 | AV7: 4 | AW7: 5 | AX7: 6 | AY7: 7 | AZ7: 8 | BA7: 9 | BB7: 10 | BC7: 11 | BD7: 1 | BE7: 2 | BF7: 3 | BG7: 4 | BH7: 5 | BI7: 6 | BJ7: 7 | BK7: 8 | BL7: 9 | BM7: 10 | BN7: 11 | BO7: base case if x
A8: E1 | B8: e-consulation access rate | C8: percent | D8: =IF(E8=X_axis_txt,"X", IF(E8=legend_txt,"S","")) ->  | E8: ='Upper and Lower Limits'!S5 -> e-consult access rate | F8: ='Upper and Lower Limits'!G5 -> 1 | G8: ='Upper and Lower Limits'!H5 -> 0.0001 | H8: ='Upper and Lower Limits'!I5 -> 1 | I8: =$F8-(($F8-$G8)/2) -> 0.50005 | J8: =$F8+(($H8-$F8)/2) -> 1 | K8: =(H8-G8)/10 -> 0.09999 | L8: =IF($D8="X",($G8+($K8*(L$7-1))),IF($D8="S",($G8),$F8)) -> 1 | M8: 1 | N8: 1 | O8: 1 | P8: 1 | Q8: 1 | R8: 1 | S8: 1 | T8: 1 | U8: 1 | V8: 1 | W8: =IF($D8="X",($G8+($K8*(W$7-1))),IF($D8="S",($I8),$F8)) -> 1 | X8: 1 | Y8: 1 | Z8: 1 | AA8: 1 | AB8: 1 | AC8: 1 | AD8: 1 | AE8: 1 | AF8: 1 | AG8: 1 | AH8: =IF($D8="X",($G8+($K8*(AH$7-1))),IF($D8="S",($F8),$F8)) -> 1 | AI8: 1 | AJ8: 1 | AK8: 1 | AL8: 1 | AM8: 1 | AN8: 1 | AO8: 1 | AP8: 1 | AQ8: 1 | AR8: 1 | AS8: =IF($D8="X",($G8+($K8*(AS$7-1))),IF($D8="S",($J8),$F8)) -> 1 | AT8: 1 | AU8: 1 | AV8: 1 | AW8: 1 | AX8: 1 | AY8: 1 | AZ8: 1 | BA8: 1 | BB8: 1 | BC8: 1 | BD8: =IF($D8="X",($G8+($K8*(BD$7-1))),IF($D8="S",($H8),$F8)) -> 1 | BE8: 1 | BF8: 1 | BG8: 1 | BH8: 1 | BI8: 1 | BJ8: 1 | BK8: 1 | BL8: 1 | BM8: 1 | BN8: 1 | BO8: =IF($D8="X",F8,) -> 0
A9: E2 | B9: e-consulation completion rate | C9: percent | E9: ='Upper and Lower Limits'!S6 -> e-consult completion rate | F9: ='Upper and Lower Limits'!G6 -> 0.3 | G9: ='Upper and Lower Limits'!H6 -> 0.1 | H9: ='Upper and Lower Limits'!I6 -> 0.9 | I9: 0.2 | J9: 0.6 | K9: 0.08 | L9: 0.3 | M9: 0.3 | N9: 0.3 | O9: 0.3 | P9: 0.3 | Q9: 0.3 | R9: 0.3 | S9: 0.3 | T9: 0.3 | U9: 0.3 | V9: 0.3 | W9: 0.3 | X9: 0.3 | Y9: 0.3 | Z9: 0.3 | AA9: 0.3 | AB9: 0.3 | AC9: 0.3 | AD9: 0.3 | AE9: 0.3 | AF9: 0.3 | AG9: 0.3 | AH9: 0.3 | AI9: 0.3 | AJ9: 0.3 | AK9: 0.3 | AL9: 0.3 | AM9: 0.3 | AN9: 0.3 | AO9: 0.3 | AP9: 0.3 | AQ9: 0.3 | AR9: 0.3 | AS9: 0.3 | AT9: 0.3 | AU9: 0.3 | AV9: 0.3 | AW9: 0.3 | AX9: 0.3 | AY9: 0.3 | AZ9: 0.3 | BA9: 0.3 | BB9: 0.3 | BC9: 0.3 | BD9: 0.3 | BE9: 0.3 | BF9: 0.3 | BG9: 0.3 | BH9: 0.3 | BI9: 0.3 | BJ9: 0.3 | BK9: 0.3 | BL9: 0.3 | BM9: 0.3 | BN9: 0.3 | BO9: =IF($D9="X",F9,) -> 0
A10: X1(e) | C10: percent | D10: X | E10: ='Upper and Lower Limits'!S7 -> Phone via e-consult | F10: ='Upper and Lower Limits'!G7 -> 0.9 | G10: ='Upper and Lower Limits'!H7 -> 0.3 | H10: ='Upper and Lower Limits'!I7 -> 1 | I10: 0.6 | J10: 0.95 | K10: 0.07 | L10: 0.3 | M10: 0.37 | N10: 0.44 | O10: 0.51 | P10: 0.58 | Q10: 0.65 | R10: 0.72 | S10: 0.79 | T10: 0.86 | U10: 0.93 | V10: 1 | W10: 0.3 | X10: 0.37 | Y10: 0.44 | Z10: 0.51 | AA10: 0.58 | AB10: 0.65 | AC10: 0.72 | AD10: 0.79 | AE10: 0.86 | AF10: 0.93 | AG10: 1 | AH10: 0.3 | AI10: 0.37 | AJ10: 0.44 | AK10: 0.51 | AL10: 0.58 | AM10: 0.65 | AN10: 0.72 | AO10: 0.79 | AP10: 0.86 | AQ10: 0.93 | AR10: 1 | AS10: 0.3 | AT10: 0.37 | AU10: 0.44 | AV10: 0.51 | AW10: 0.58 | AX10: 0.65 | AY10: 0.72 | AZ10: 0.79 | BA10: 0.86 | BB10: 0.93 | BC10: 1 | BD10: 0.3 | BE10: 0.37 | BF10: 0.44 | BG10: 0.51 | BH10: 0.58 | BI10: 0.65 | BJ10: 0.72 | BK10: 0.79 | BL10: 0.86 | BM10: 0.93 | BN10: 1 | BO10: 0.9
A11: E3 | B11: e-consultation clincian time (mins) | C11: number | D11: =IF(E11=X_axis_txt,"X", IF(E11=legend_txt,"S","")) ->  | E11: ='Upper and Lower Limits'!S8 -> e-consult consultation duration | F11: ='Upper and Lower Limits'!G8 -> 4 | G11: ='Upper and Lower Limits'!H8 -> 2 | H11: ='Upper and Lower Limits'!I8 -> 5 | I11: =$F11-(($F11-$G11)/2) -> 3 | J11: =$F11+(($H11-$F11)/2) -> 4.5 | K11: =(H11-G11)/10 -> 0.3 | L11: 4 | M11: 4 | N11: 4 | O11: 4 | P11: 4 | Q11: 4 | R11: 4 | S11: 4 | T11: 4 | U11: 4 | V11: 4 | W11: 4 | X11: 4 | Y11: 4 | Z11: 4 | AA11: 4 | AB11: 4 | AC11: 4 | AD11: 4 | AE11: 4 | AF11: 4 | AG11: 4 | AH11: 4 | AI11: 4 | AJ11: 4 | AK11: 4 | AL11: 4 | AM11: 4 | AN11: 4 | AO11: 4 | AP11: 4 | AQ11: 4 | AR11: 4 | AS11: 4 | AT11: 4 | AU11: 4 | AV11: 4 | AW11: 4 | AX11: 4 | AY11: 4 | AZ11: 4 | BA11: 4 | BB11: 4 | BC11: 4 | BD11: 4 | BE11: 4 | BF11: 4 | BG11: 4 | BH11: 4 | BI11: 4 | BJ11: 4 | BK11: 4 | BL11: 4 | BM11: 4 | BN11: 4 | BO11: =IF($D11="X",F11,) -> 0
A12: E4 | B12: e-consulation completion rate | C12: percent | D12: S | E12: ='Upper and Lower Limits'!S9 -> e-consult supply-related demand | F12: ='Upper and Lower Limits'!G9 -> 0.05 | G12: ='Upper and Lower Limits'!H9 -> -0.1 | H12: ='Upper and Lower Limits'!I9 -> 0.2 | I12: -0.025 | J12: 0.125 | K12: 0.03 | L12: -0.1 | M12: -0.1 | N12: -0.1 | O12: -0.1 | P12: -0.1 | Q12: -0.1 | R12: -0.1 | S12: -0.1 | T12: -0.1 | U12: -0.1 | V12: -0.1 | W12: -0.025 | X12: -0.025 | Y12: -0.025 | Z12: -0.025 | AA12: -0.025 | AB12: -0.025 | AC12: -0.025 | AD12: -0.025 | AE12: -0.025 | AF12: -0.025 | AG12: -0.025 | AH12: 0.05 | AI12: 0.05 | AJ12: 0.05 | AK12: 0.05 | AL12: 0.05 | AM12: 0.05 | AN12: 0.05 | AO12: 0.05 | AP12: 0.05 | AQ12: 0.05 | AR12: 0.05 | AS12: 0.125 | AT12: 0.125 | AU12: 0.125 | AV12: 0.125 | AW12: 0.125 | AX12: 0.125 | AY12: 0.125 | AZ12: 0.125 | BA12: 0.125 | BB12: 0.125 | BC12: 0.125 | BD12: 0.2 | BE12: 0.2 | BF12: 0.2 | BG12: 0.2 | BH12: 0.2 | BI12: 0.2 | BJ12: 0.2 | BK12: 0.2 | BL12: 0.2 | BM12: 0.2 | BN12: 0.2 | BO12: 0
A13: X1 | B13: Alt-Con access rate | C13: percent | E13: ='Upper and Lower Limits'!F5 -> Tel/video Access Rate | F13: ='Upper and Lower Limits'!T5 -> 1 | G13: ='Upper and Lower Limits'!U5 -> 0.0001 | H13: ='Upper and Lower Limits'!V5 -> 1 | I13: 0.50005 | J13: 1 | K13: 0.09999 | L13: 1 | M13: 1 | N13: 1 | O13: 1 | P13: 1 | Q13: 1 | R13: 1 | S13: 1 | T13: 1 | U13: 1 | V13: 1 | W13: 1 | X13: 1 | Y13: 1 | Z13: 1 | AA13: 1 | AB13: 1 | AC13: 1 | AD13: 1 | AE13: 1 | AF13: 1 | AG13: 1 | AH13: 1 | AI13: 1 | AJ13: 1 | AK13: 1 | AL13: 1 | AM13: 1 | AN13: 1 | AO13: 1 | AP13: 1 | AQ13: 1 | AR13: 1 | AS13: 1 | AT13: 1 | AU13: 1 | AV13: 1 | AW13: 1 | AX13: 1 | AY13: 1 | AZ13: 1 | BA13: 1 | BB13: 1 | BC13: 1 | BD13: 1 | BE13: 1 | BF13: 1 | BG13: 1 | BH13: 1 | BI13: 1 | BJ13: 1 | BK13: 1 | BL13: 1 | BM13: 1 | BN13: 1 | BO13: 0
A14: X2 | B14: Alt-con completion rate | C14: percent | E14: ='Upper and Lower Limits'!F6 -> Tel/video Completion Rate | F14: ='Upper and Lower Limits'!T6 -> 0.8 | G14: ='Upper and Lower Limits'!U6 -> 0.1 | H14: ='Upper and Lower Limits'!V6 -> 0.9 | I14: 0.45 | J14: 0.85 | K14: 0.08 | L14: 0.8 | M14: 0.8 | N14: 0.8 | O14: 0.8 | P14: 0.8 | Q14: 0.8 | R14: 0.8 | S14: 0.8 | T14: 0.8 | U14: 0.8 | V14: 0.8 | W14: 0.8 | X14: 0.8 | Y14: 0.8 | Z14: 0.8 | AA14: 0.8 | AB14: 0.8 | AC14: 0.8 | AD14: 0.8 | AE14: 0.8 | AF14: 0.8 | AG14: 0.8 | AH14: 0.8 | AI14: 0.8 | AJ14: 0.8 | AK14: 0.8 | AL14: 0.8 | AM14: 0.8 | AN14: 0.8 | AO14: 0.8 | AP14: 0.8 | AQ14: 0.8 | AR14: 0.8 | AS14: 0.8 | AT14: 0.8 | AU14: 0.8 | AV14: 0.8 | AW14: 0.8 | AX14: 0.8 | AY14: 0.8 | AZ14: 0.8 | BA14: 0.8 | BB14: 0.8 | BC14: 0.8 | BD14: 0.8 | BE14: 0.8 | BF14: 0.8 | BG14: 0.8 | BH14: 0.8 | BI14: 0.8 | BJ14: 0.8 | BK14: 0.8 | BL14: 0.8 | BM14: 0.8 | BN14: 0.8 | BO14: 0
A15: X3 | B15: Alt-con time | C15: number | D15: =IF(E15=X_axis_txt,"X", IF(E15=legend_txt,"S","")) ->  | E15: ='Upper and Lower Limits'!F8 -> Tel/video Consultation Duration | F15: ='Upper and Lower Limits'!T8 -> 5 | G15: ='Upper and Lower Limits'!U8 -> 4 | H15: ='Upper and Lower Limits'!V8 -> 6 | I15: =$F15-(($F15-$G15)/2) -> 4.5 | J15: =$F15+(($H15-$F15)/2) -> 5.5 | K15: =(H15-G15)/10 -> 0.2 | L15: 5 | M15: 5 | N15: 5 | O15: 5 | P15: 5 | Q15: 5 | R15: 5 | S15: 5 | T15: 5 | U15: 5 | V15: 5 | W15: 5 | X15: 5 | Y15: 5 | Z15: 5 | AA15: 5 | AB15: 5 | AC15: 5 | AD15: 5 | AE15: 5 | AF15: 5 | AG15: 5 | AH15: 5 | AI15: 5 | AJ15: 5 | AK15: 5 | AL15: 5 | AM15: 5 | AN15: 5 | AO15: 5 | AP15: 5 | AQ15: 5 | AR15: 5 | AS15: 5 | AT15: 5 | AU15: 5 | AV15: 5 | AW15: 5 | AX15: 5 | AY15: 5 | AZ15: 5 | BA15: 5 | BB15: 5 | BC15: 5 | BD15: 5 | BE15: 5 | BF15: 5 | BG15: 5 | BH15: 5 | BI15: 5 | BJ15: 5 | BK15: 5 | BL15: 5 | BM15: 5 | BN15: 5 | BO15: =IF($D15="X",F15,) -> 0
A16: X4 | B16: Supply induced demand | C16: percent | E16: ='Upper and Lower Limits'!F9 -> Tel/video Supply-related demand | F16: ='Upper and Lower Limits'!T9 -> 0 | G16: ='Upper and Lower Limits'!U9 -> -0.1 | H16: ='Upper and Lower Limits'!V9 -> 0.2 | I16: -0.05 | J16: 0.1 | K16: 0.03 | L16: 0 | M16: 0 | N16: 0 | O16: 0 | P16: 0 | Q16: 0 | R16: 0 | S16: 0 | T16: 0 | U16: 0 | V16: 0 | W16: 0 | X16: 0 | Y16: 0 | Z16: 0 | AA16: 0 | AB16: 0 | AC16: 0 | AD16: 0 | AE16: 0 | AF16: 0 | AG16: 0 | AH16: 0 | AI16: 0 | AJ16: 0 | AK16: 0 | AL16: 0 | AM16: 0 | AN16: 0 | AO16: 0 | AP16: 0 | AQ16: 0 | AR16: 0 | AS16: 0 | AT16: 0 | AU16: 0 | AV16: 0 | AW16: 0 | AX16: 0 | AY16: 0 | AZ16: 0 | BA16: 0 | BB16: 0 | BC16: 0 | BD16: 0 | BE16: 0 | BF16: 0 | BG16: 0 | BH16: 0 | BI16: 0 | BJ16: 0 | BK16: 0 | BL16: 0 | BM16: 0 | BN16: 0 | BO16: 0
A17: F1 | B17: GP F2F time | C17: number | E17: ='Upper and Lower Limits'!D10 -> GP F2F time | F17: ='Upper and Lower Limits'!T10 -> 9 | G17: ='Upper and Lower Limits'!U10 -> 9 | H17: ='Upper and Lower Limits'!V10 -> 9 | I17: 9 | J17: 9 | K17: 0 | L17: 9 | M17: 9 | N17: 9 | O17: 9 | P17: 9 | Q17: 9 | R17: 9 | S17: 9 | T17: 9 | U17: 9 | V17: 9 | W17: 9 | X17: 9 | Y17: 9 | Z17: 9 | AA17: 9 | AB17: 9 | AC17: 9 | AD17: 9 | AE17: 9 | AF17: 9 | AG17: 9 | AH17: 9 | AI17: 9 | AJ17: 9 | AK17: 9 | AL17: 9 | AM17: 9 | AN17: 9 | AO17: 9 | AP17: 9 | AQ17: 9 | AR17: 9 | AS17: 9 | AT17: 9 | AU17: 9 | AV17: 9 | AW17: 9 | AX17: 9 | AY17: 9 | AZ17: 9 | BA17: 9 | BB17: 9 | BC17: 9 | BD17: 9 | BE17: 9 | BF17: 9 | BG17: 9 | BH17: 9 | BI17: 9 | BJ17: 9 | BK17: 9 | BL17: 9 | BM17: 9 | BN17: 9 | BO17: 0
E18: digital: supply-induced demand compared with original | F18: =1/(1-F12) -> 1.052631579 | G18: 0.9090909091 | H18: 1.25 | I18: 0.9756097561 | J18: 1.142857143 | K18: 1.030927835 | L18: =1/(1-L12) -> 0.9090909091 | M18: 0.9090909091 | N18: 0.9090909091 | O18: 0.9090909091 | P18: 0.9090909091 | Q18: 0.9090909091 | R18: 0.9090909091 | S18: 0.9090909091 | T18: 0.9090909091 | U18: 0.9090909091 | V18: 0.9090909091 | W18: 0.9756097561 | X18: 0.9756097561 | Y18: 0.9756097561 | Z18: 0.9756097561 | AA18: 0.9756097561 | AB18: 0.9756097561 | AC18: 0.9756097561 | AD18: 0.9756097561 | AE18: 0.9756097561 | AF18: 0.9756097561 | AG18: 0.9756097561 | AH18: 1.052631579 | AI18: 1.052631579 | AJ18: 1.052631579 | AK18: 1.052631579 | AL18: 1.052631579 | AM18: 1.052631579 | AN18: 1.052631579 | AO18: 1.052631579 | AP18: 1.052631579 | AQ18: 1.052631579 | AR18: 1.052631579 | AS18: 1.142857143 | AT18: 1.142857143 | AU18: 1.142857143 | AV18: 1.142857143 | AW18: 1.142857143 | AX18: 1.142857143 | AY18: 1.142857143 | AZ18: 1.142857143 | BA18: 1.142857143 | BB18: 1.142857143 | BC18: 1.142857143 | BD18: 1.25 | BE18: 1.25 | BF18: 1.25 | BG18: 1.25 | BH18: 1.25 | BI18: 1.25 | BJ18: 1.25 | BK18: 1.25 | BL18: 1.25 | BM18: 1.25 | BN18: 1.25
E19: tel/video: Supply induced demand compared with original | F19: =1/(1-(F16)) -> 1 | G19: 0.9090909091 | H19: 1.25 | I19: 0.9523809524 | J19: 1.111111111 | K19: 1.030927835 | L19: =1/(1-(L16)) -> 1 | M19: 1 | N19: 1 | O19: 1 | P19: 1 | Q19: 1 | R19: 1 | S19: 1 | T19: 1 | U19: 1 | V19: 1 | W19: 1 | X19: 1 | Y19: 1 | Z19: 1 | AA19: 1 | AB19: 1 | AC19: 1 | AD19: 1 | AE19: 1 | AF19: 1 | AG19: 1 | AH19: 1 | AI19: 1 | AJ19: 1 | AK19: 1 | AL19: 1 | AM19: 1 | AN19: 1 | AO19: 1 | AP19: 1 | AQ19: 1 | AR19: 1 | AS19: 1 | AT19: 1 | AU19: 1 | AV19: 1 | AW19: 1 | AX19: 1 | AY19: 1 | AZ19: 1 | BA19: 1 | BB19: 1 | BC19: 1 | BD19: 1 | BE19: 1 | BF19: 1 | BG19: 1 | BH19: 1 | BI19: 1 | BJ19: 1 | BK19: 1 | BL19: 1 | BM19: 1 | BN19: 1 | BO19: =MAX(BO8:BO17) -> 0.9
E20: The is the total additional demand routed into the system at the very beginning
A21: ArrivalProportion | E21: Supply-induced demand | F21: =IF(AltCon_txt="e-consult first",'Sensitivity Analysis'!F18,'Sensitivity Analysis'!F19) -> 1.052631579 | G21: =IF(AltCon_txt="e-consult first",'Sensitivity Analysis'!G18,'Sensitivity Analysis'!G19) -> 0.9090909091 | H21: =IF(AltCon_txt="e-consult first",'Sensitivity Analysis'!H18,'Sensitivity Analysis'!H19) -> 1.25 | I21: =IF(AltCon_txt="e-consult first",'Sensitivity Analysis'!I18,'Sensitivity Analysis'!I19) -> 0.9756097561 | J21: =IF(AltCon_txt="e-consult first",'Sensitivity Analysis'!J18,'Sensitivity Analysis'!J19) -> 1.142857143 | K21: =IF(AltCon_txt="e-consult first",'Sensitivity Analysis'!K18,'Sensitivity Analysis'!K19) -> 1.030927835 | L21: =IF(AltCon_txt="e-consult first",'Sensitivity Analysis'!L18,'Sensitivity Analysis'!L19) -> 0.9090909091 | M21: =IF(AltCon_txt="e-consult first",'Sensitivity Analysis'!M18,'Sensitivity Analysis'!M19) -> 0.9090909091 | N21: =IF(AltCon_txt="e-consult first",'Sensitivity Analysis'!N18,'Sensitivity Analysis'!N19) -> 0.9090909091 | O21: =IF(AltCon_txt="e-consult first",'Sensitivity Analysis'!O18,'Sensitivity Analysis'!O19) -> 0.9090909091 | P21: =IF(AltCon_txt="e-consult first",'Sensitivity Analysis'!P18,'Sensitivity Analysis'!P19) -> 0.9090909091 | Q21: =IF(AltCon_txt="e-consult first",'Sensitivity Analysis'!Q18,'Sensitivity Analysis'!Q19) -> 0.9090909091 | R21: =IF(AltCon_txt="e-consult first",'Sensitivity Analysis'!R18,'Sensitivity Analysis'!R19) -> 0.9090909091 | S21: =IF(AltCon_txt="e-consult first",'Sensitivity Analysis'!S18,'Sensitivity Analysis'!S19) -> 0.9090909091 | T21: =IF(AltCon_txt="e-consult first",'Sensitivity Analysis'!T18,'Sensitivity Analysis'!T19) -> 0.9090909091 | U21: =IF(AltCon_txt="e-consult first",'Sensitivity Analysis'!U18,'Sensitivity Analysis'!U19) -> 0.9090909091 | V21: =IF(AltCon_txt="e-consult first",'Sensitivity Analysis'!V18,'Sensitivity Analysis'!V19) -> 0.9090909091 | W21: =IF(AltCon_txt="e-consult first",'Sensitivity Analysis'!W18,'Sensitivity Analysis'!W19) -> 0.9756097561 | X21: =IF(AltCon_txt="e-consult first",'Sensitivity Analysis'!X18,'Sensitivity Analysis'!X19) -> 0.9756097561 | Y21: =IF(AltCon_txt="e-consult first",'Sensitivity Analysis'!Y18,'Sensitivity Analysis'!Y19) -> 0.9756097561 | Z21: =IF(AltCon_txt="e-consult first",'Sensitivity Analysis'!Z18,'Sensitivity Analysis'!Z19) -> 0.9756097561 | AA21: =IF(AltCon_txt="e-consult first",'Sensitivity Analysis'!AA18,'Sensitivity Analysis'!AA19) -> 0.9756097561 | AB21: =IF(AltCon_txt="e-consult first",'Sensitivity Analysis'!AB18,'Sensitivity Analysis'!AB19) -> 0.9756097561 | AC21: =IF(AltCon_txt="e-consult first",'Sensitivity Analysis'!AC18,'Sensitivity Analysis'!AC19) -> 0.9756097561 | AD21: =IF(AltCon_txt="e-consult first",'Sensitivity Analysis'!AD18,'Sensitivity Analysis'!AD19) -> 0.9756097561 | AE21: =IF(AltCon_txt="e-consult first",'Sensitivity Analysis'!AE18,'Sensitivity Analysis'!AE19) -> 0.9756097561 | AF21: =IF(AltCon_txt="e-consult first",'Sensitivity Analysis'!AF18,'Sensitivity Analysis'!AF19) -> 0.9756097561 | AG21: =IF(AltCon_txt="e-consult first",'Sensitivity Analysis'!AG18,'Sensitivity Analysis'!AG19) -> 0.9756097561 | AH21: =IF(AltCon_txt="e-consult first",'Sensitivity Analysis'!AH18,'Sensitivity Analysis'!AH19) -> 1.052631579 | AI21: =IF(AltCon_txt="e-consult first",'Sensitivity Analysis'!AI18,'Sensitivity Analysis'!AI19) -> 1.052631579 | AJ21: =IF(AltCon_txt="e-consult first",'Sensitivity Analysis'!AJ18,'Sensitivity Analysis'!AJ19) -> 1.052631579 | AK21: =IF(AltCon_txt="e-consult first",'Sensitivity Analysis'!AK18,'Sensitivity Analysis'!AK19) -> 1.052631579 | AL21: =IF(AltCon_txt="e-consult first",'Sensitivity Analysis'!AL18,'Sensitivity Analysis'!AL19) -> 1.052631579 | AM21: =IF(AltCon_txt="e-consult first",'Sensitivity Analysis'!AM18,'Sensitivity Analysis'!AM19) -> 1.052631579 | AN21: =IF(AltCon_txt="e-consult first",'Sensitivity Analysis'!AN18,'Sensitivity Analysis'!AN19) -> 1.052631579 | AO21: =IF(AltCon_txt="e-consult first",'Sensitivity Analysis'!AO18,'Sensitivity Analysis'!AO19) -> 1.052631579 | AP21: =IF(AltCon_txt="e-consult first",'Sensitivity Analysis'!AP18,'Sensitivity Analysis'!AP19) -> 1.052631579 | AQ21: =IF(AltCon_txt="e-consult first",'Sensitivity Analysis'!AQ18,'Sensitivity Analysis'!AQ19) -> 1.052631579 | AR21: =IF(AltCon_txt="e-consult first",'Sensitivity Analysis'!AR18,'Sensitivity Analysis'!AR19) -> 1.052631579 | AS21: =IF(AltCon_txt="e-consult first",'Sensitivity Analysis'!AS18,'Sensitivity Analysis'!AS19) -> 1.142857143 | AT21: =IF(AltCon_txt="e-consult first",'Sensitivity Analysis'!AT18,'Sensitivity Analysis'!AT19) -> 1.142857143 | AU21: =IF(AltCon_txt="e-consult first",'Sensitivity Analysis'!AU18,'Sensitivity Analysis'!AU19) -> 1.142857143 | AV21: =IF(AltCon_txt="e-consult first",'Sensitivity Analysis'!AV18,'Sensitivity Analysis'!AV19) -> 1.142857143 | AW21: =IF(AltCon_txt="e-consult first",'Sensitivity Analysis'!AW18,'Sensitivity Analysis'!AW19) -> 1.142857143 | AX21: =IF(AltCon_txt="e-consult first",'Sensitivity Analysis'!AX18,'Sensitivity Analysis'!AX19) -> 1.142857143 | AY21: =IF(AltCon_txt="e-consult first",'Sensitivity Analysis'!AY18,'Sensitivity Analysis'!AY19) -> 1.142857143 | AZ21: =IF(AltCon_txt="e-consult first",'Sensitivity Analysis'!AZ18,'Sensitivity Analysis'!AZ19) -> 1.142857143 | BA21: =IF(AltCon_txt="e-consult first",'Sensitivity Analysis'!BA18,'Sensitivity Analysis'!BA19) -> 1.142857143 | BB21: =IF(AltCon_txt="e-consult first",'Sensitivity Analysis'!BB18,'Sensitivity Analysis'!BB19) -> 1.142857143 | BC21: =IF(AltCon_txt="e-consult first",'Sensitivity Analysis'!BC18,'Sensitivity Analysis'!BC19) -> 1.142857143 | BD21: =IF(AltCon_txt="e-consult first",'Sensitivity Analysis'!BD18,'Sensitivity Analysis'!BD19) -> 1.25 | BE21: =IF(AltCon_txt="e-consult first",'Sensitivity Analysis'!BE18,'Sensitivity Analysis'!BE19) -> 1.25 | BF21: =IF(AltCon_txt="e-consult first",'Sensitivity Analysis'!BF18,'Sensitivity Analysis'!BF19) -> 1.25 | BG21: =IF(AltCon_txt="e-consult first",'Sensitivity Analysis'!BG18,'Sensitivity Analysis'!BG19) -> 1.25 | BH21: =IF(AltCon_txt="e-consult first",'Sensitivity Analysis'!BH18,'Sensitivity Analysis'!BH19) -> 1.25 | BI21: =IF(AltCon_txt="e-consult first",'Sensitivity Analysis'!BI18,'Sensitivity Analysis'!BI19) -> 1.25 | BJ21: =IF(AltCon_txt="e-consult first",'Sensitivity Analysis'!BJ18,'Sensitivity Analysis'!BJ19) -> 1.25 | BK21: =IF(AltCon_txt="e-consult first",'Sensitivity Analysis'!BK18,'Sensitivity Analysis'!BK19) -> 1.25 | BL21: =IF(AltCon_txt="e-consult first",'Sensitivity Analysis'!BL18,'Sensitivity Analysis'!BL19) -> 1.25 | BM21: =IF(AltCon_txt="e-consult first",'Sensitivity Analysis'!BM18,'Sensitivity Analysis'!BM19) -> 1.25 | BN21: =IF(AltCon_txt="e-consult first",'Sensitivity Analysis'!BN18,'Sensitivity Analysis'!BN19) -> 1.25
E24: Patient proprtions - alternative route (proportions inflated)
B25: E1 x Arrival proprtion | D25: Process 1 | E25: proportion managed through digital first | F25: =IF(AltCon_txt="e-consult first",F21*F8,0) -> 1.052631579 | L25: =IF(AltCon_txt="e-consult first",L21*L8,0) -> 0.9090909091 | M25: 0.9090909091 | N25: 0.9090909091 | O25: 0.9090909091 | P25: 0.9090909091 | Q25: 0.9090909091 | R25: 0.9090909091 | S25: 0.9090909091 | T25: 0.9090909091 | U25: 0.9090909091 | V25: 0.9090909091 | W25: 0.9756097561 | X25: 0.9756097561 | Y25: 0.9756097561 | Z25: 0.9756097561 | AA25: 0.9756097561 | AB25: 0.9756097561 | AC25: 0.9756097561 | AD25: 0.9756097561 | AE25: 0.9756097561 | AF25: 0.9756097561 | AG25: 0.9756097561 | AH25: 1.052631579 | AI25: 1.052631579 | AJ25: 1.052631579 | AK25: 1.052631579 | AL25: 1.052631579 | AM25: 1.052631579 | AN25: 1.052631579 | AO25: 1.052631579 | AP25: 1.052631579 | AQ25: 1.052631579 | AR25: =IF(AltCon_txt="e-consult first",AR21*AR8,0) -> 1.052631579 | AS25: 1.142857143 | AT25: 1.142857143 | AU25: 1.142857143 | AV25: 1.142857143 | AW25: 1.142857143 | AX25: 1.142857143 | AY25: 1.142857143 | AZ25: 1.142857143 | BA25: 1.142857143 | BB25: 1.142857143 | BC25: 1.142857143 | BD25: 1.25 | BE25: 1.25 | BF25: 1.25 | BG25: 1.25 | BH25: 1.25 | BI25: 1.25 | BJ25: 1.25 | BK25: 1.25 | BL25: 1.25 | BM25: 1.25 | BN25: 1.25
B26: e-consult=(1-E1)*(1-X1-conventional) + ArrivalProportion*E1*(1-E2)*X1e : tel/video = 1-X1 | D26: Process 2 | E26: GP F2F appt as first real time contact | F26: =IF(AltCon_txt="e-consult first",(((1-F8)*(1-F39))+(F8*F21*(1-F9)*(1-F10))),(1-F13)) -> 0.07368421053 | L26: =IF(AltCon_txt="e-consult first",(((1-L8)*(1-L39))+(L8*L21*(1-L9)*(1-L10))),(1-L13)) -> 0.4454545455 | M26: 0.4009090909 | N26: 0.3563636364 | O26: 0.3118181818 | P26: 0.2672727273 | Q26: 0.2227272727 | R26: 0.1781818182 | S26: 0.1336363636 | T26: 0.08909090909 | U26: 0.04454545455 | V26: 0 | W26: 0.4780487805 | X26: 0.4302439024 | Y26: 0.3824390244 | Z26: 0.3346341463 | AA26: 0.2868292683 | AB26: 0.2390243902 | AC26: 0.1912195122 | AD26: 0.1434146341 | AE26: 0.0956097561 | AF26: 0.04780487805 | AG26: 0 | AH26: 0.5157894737 | AI26: 0.4642105263 | AJ26: 0.4126315789 | AK26: 0.3610526316 | AL26: 0.3094736842 | AM26: 0.2578947368 | AN26: 0.2063157895 | AO26: 0.1547368421 | AP26: 0.1031578947 | AQ26: 0.05157894737 | AR26: =IF(AltCon_txt="e-consult first",(((1-AR8)*(1-AR39))+(AR8*AR21*(1-AR9)*(1-AR10))),(1-AR13)) -> 0 | AS26: 0.56 | AT26: 0.504 | AU26: 0.448 | AV26: 0.392 | AW26: 0.336 | AX26: 0.28 | AY26: 0.224 | AZ26: 0.168 | BA26: 0.112 | BB26: 0.056 | BC26: 0 | BD26: 0.6125 | BE26: 0.55125 | BF26: 0.49 | BG26: 0.42875 | BH26: 0.3675 | BI26: 0.30625 | BJ26: 0.245 | BK26: 0.18375 | BL26: 0.1225 | BM26: 0.06125 | BN26: 0
B27: e-consult=(1-E1)*(X1-conventional) + ArrivalProportion*E1*(1-E2)*(1-X1e) : tel/video = ArrivalRate*X1 + (1-X1)*X1-conventional | D27: Process 3 | E27: GP tele or video as first real time contact | F27: =IF(AltCon_txt="e-consult first",((1-F8)*F39)+(F8*F21*(1-F9)*F10),(F21*F13)) -> 0.6631578947 | L27: =IF(AltCon_txt="e-consult first",((1-L8)*L39)+(L8*L21*(1-L9)*L10),(L21*L13)) -> 0.1909090909 | M27: 0.2354545455 | N27: 0.28 | O27: 0.3245454545 | P27: 0.3690909091 | Q27: 0.4136363636 | R27: 0.4581818182 | S27: 0.5027272727 | T27: 0.5472727273 | U27: 0.5918181818 | V27: 0.6363636364 | W27: 0.2048780488 | X27: 0.2526829268 | Y27: 0.3004878049 | Z27: 0.3482926829 | AA27: 0.396097561 | AB27: 0.443902439 | AC27: 0.4917073171 | AD27: 0.5395121951 | AE27: 0.5873170732 | AF27: 0.6351219512 | AG27: 0.6829268293 | AH27: 0.2210526316 | AI27: 0.2726315789 | AJ27: 0.3242105263 | AK27: 0.3757894737 | AL27: 0.4273684211 | AM27: 0.4789473684 | AN27: 0.5305263158 | AO27: 0.5821052632 | AP27: 0.6336842105 | AQ27: 0.6852631579 | AR27: =IF(AltCon_txt="e-consult first",((1-AR8)*AR39)+(AR8*AR21*(1-AR9)*AR10),(AR21*AR13)) -> 0.7368421053 | AS27: 0.24 | AT27: 0.296 | AU27: 0.352 | AV27: 0.408 | AW27: 0.464 | AX27: 0.52 | AY27: 0.576 | AZ27: 0.632 | BA27: 0.688 | BB27: 0.744 | BC27: 0.8 | BD27: 0.2625 | BE27: 0.32375 | BF27: 0.385 | BG27: 0.44625 | BH27: 0.5075 | BI27: 0.56875 | BJ27: 0.63 | BK27: 0.69125 | BL27: 0.7525 | BM27: 0.81375 | BN27: 0.875
B28: Process 3 * X2 | D28: Process 4 | E28: GP F2F after GP Alt-Con | F28: =F27*(1-F14) -> 0.1326315789 | L28: =L27*(1-L14) -> 0.03818181818 | M28: 0.04709090909 | N28: 0.056 | O28: 0.06490909091 | P28: 0.07381818182 | Q28: 0.08272727273 | R28: 0.09163636364 | S28: 0.1005454545 | T28: 0.1094545455 | U28: 0.1183636364 | V28: 0.1272727273 | W28: 0.04097560976 | X28: 0.05053658537 | Y28: 0.06009756098 | Z28: 0.06965853659 | AA28: 0.0792195122 | AB28: 0.0887804878 | AC28: 0.09834146341 | AD28: 0.107902439 | AE28: 0.1174634146 | AF28: 0.1270243902 | AG28: 0.1365853659 | AH28: 0.04421052632 | AI28: 0.05452631579 | AJ28: 0.06484210526 | AK28: 0.07515789474 | AL28: 0.08547368421 | AM28: 0.09578947368 | AN28: 0.1061052632 | AO28: 0.1164210526 | AP28: 0.1267368421 | AQ28: 0.1370526316 | AR28: 0.1473684211 | AS28: 0.048 | AT28: 0.0592 | AU28: 0.0704 | AV28: 0.0816 | AW28: 0.0928 | AX28: 0.104 | AY28: 0.1152 | AZ28: 0.1264 | BA28: 0.1376 | BB28: 0.1488 | BC28: 0.16 | BD28: 0.0525 | BE28: 0.06475 | BF28: 0.077 | BG28: 0.08925 | BH28: 0.1015 | BI28: 0.11375 | BJ28: 0.126 | BK28: 0.13825 | BL28: 0.1505 | BM28: 0.16275 | BN28: 0.175
E30: Minutes per patient contact - alternative route: adjusted for cost
D31: Process 0 | E31: Workload cost managed through digital first | F31: =F25*F11 -> 4.210526316 | L31: =L25*L11 -> 3.636363636 | M31: 3.636363636 | N31: 3.636363636 | O31: 3.636363636 | P31: 3.636363636 | Q31: 3.636363636 | R31: 3.636363636 | S31: 3.636363636 | T31: 3.636363636 | U31: 3.636363636 | V31: 3.636363636 | W31: 3.902439024 | X31: 3.902439024 | Y31: 3.902439024 | Z31: 3.902439024 | AA31: 3.902439024 | AB31: 3.902439024 | AC31: 3.902439024 | AD31: 3.902439024 | AE31: 3.902439024 | AF31: 3.902439024 | AG31: 3.902439024 | AH31: 4.210526316 | AI31: 4.210526316 | AJ31: 4.210526316 | AK31: 4.210526316 | AL31: 4.210526316 | AM31: 4.210526316 | AN31: 4.210526316 | AO31: 4.210526316 | AP31: 4.210526316 | AQ31: 4.210526316 | AR31: =AR25*AR11 -> 4.210526316 | AS31: 4.571428571 | AT31: 4.571428571 | AU31: 4.571428571 | AV31: 4.571428571 | AW31: 4.571428571 | AX31: 4.571428571 | AY31: 4.571428571 | AZ31: 4.571428571 | BA31: 4.571428571 | BB31: 4.571428571 | BC31: 4.571428571 | BD31: 5 | BE31: 5 | BF31: 5 | BG31: 5 | BH31: 5 | BI31: 5 | BJ31: 5 | BK31: 5 | BL31: 5 | BM31: 5 | BN31: 5
D32: Process 1 | E32: workload cost managed through GP f2f as first real time contact by doctor | F32: =F26*F17 -> 0.6631578947 | L32: =L26*L17 -> 4.009090909 | M32: 3.608181818 | N32: 3.207272727 | O32: 2.806363636 | P32: 2.405454545 | Q32: 2.004545455 | R32: 1.603636364 | S32: 1.202727273 | T32: 0.8018181818 | U32: 0.4009090909 | V32: 0 | W32: 4.302439024 | X32: 3.872195122 | Y32: 3.44195122 | Z32: 3.011707317 | AA32: 2.581463415 | AB32: 2.151219512 | AC32: 1.72097561 | AD32: 1.290731707 | AE32: 0.8604878049 | AF32: 0.4302439024 | AG32: 0 | AH32: 4.642105263 | AI32: 4.177894737 | AJ32: 3.713684211 | AK32: 3.249473684 | AL32: 2.785263158 | AM32: 2.321052632 | AN32: 1.856842105 | AO32: 1.392631579 | AP32: 0.9284210526 | AQ32: 0.4642105263 | AR32: =AR26*AR17 -> 0 | AS32: 5.04 | AT32: 4.536 | AU32: 4.032 | AV32: 3.528 | AW32: 3.024 | AX32: 2.52 | AY32: 2.016 | AZ32: 1.512 | BA32: 1.008 | BB32: 0.504 | BC32: 0 | BD32: 5.5125 | BE32: 4.96125 | BF32: 4.41 | BG32: 3.85875 | BH32: 3.3075 | BI32: 2.75625 | BJ32: 2.205 | BK32: 1.65375 | BL32: 1.1025 | BM32: 0.55125 | BN32: 0
D33: Process 3 | E33: workload cost managed through tele or video as first real time contact (always GP) | F33: =F27*F15 -> 3.315789474 | L33: =L27*L15 -> 0.9545454545 | M33: 1.177272727 | N33: 1.4 | O33: 1.622727273 | P33: 1.845454545 | Q33: 2.068181818 | R33: 2.290909091 | S33: 2.513636364 | T33: 2.736363636 | U33: 2.959090909 | V33: 3.181818182 | W33: 1.024390244 | X33: 1.263414634 | Y33: 1.502439024 | Z33: 1.741463415 | AA33: 1.980487805 | AB33: 2.219512195 | AC33: 2.458536585 | AD33: 2.697560976 | AE33: 2.936585366 | AF33: 3.175609756 | AG33: 3.414634146 | AH33: 1.105263158 | AI33: 1.363157895 | AJ33: 1.621052632 | AK33: 1.878947368 | AL33: 2.136842105 | AM33: 2.394736842 | AN33: 2.652631579 | AO33: 2.910526316 | AP33: 3.168421053 | AQ33: 3.426315789 | AR33: =AR27*AR15 -> 3.684210526 | AS33: 1.2 | AT33: 1.48 | AU33: 1.76 | AV33: 2.04 | AW33: 2.32 | AX33: 2.6 | AY33: 2.88 | AZ33: 3.16 | BA33: 3.44 | BB33: 3.72 | BC33: 4 | BD33: 1.3125 | BE33: 1.61875 | BF33: 1.925 | BG33: 2.23125 | BH33: 2.5375 | BI33: 2.84375 | BJ33: 3.15 | BK33: 3.45625 | BL33: 3.7625 | BM33: 4.06875 | BN33: 4.375
D34: Process 4 | E34: workload cost through f2f following new route by doctor | F34: =F28*F17 -> 1.193684211 | L34: =L28*L17 -> 0.3436363636 | M34: 0.4238181818 | N34: 0.504 | O34: 0.5841818182 | P34: 0.6643636364 | Q34: 0.7445454545 | R34: 0.8247272727 | S34: 0.9049090909 | T34: 0.9850909091 | U34: 1.065272727 | V34: 1.145454545 | W34: 0.3687804878 | X34: 0.4548292683 | Y34: 0.5408780488 | Z34: 0.6269268293 | AA34: 0.7129756098 | AB34: 0.7990243902 | AC34: 0.8850731707 | AD34: 0.9711219512 | AE34: 1.057170732 | AF34: 1.143219512 | AG34: 1.229268293 | AH34: 0.3978947368 | AI34: 0.4907368421 | AJ34: 0.5835789474 | AK34: 0.6764210526 | AL34: 0.7692631579 | AM34: 0.8621052632 | AN34: 0.9549473684 | AO34: 1.047789474 | AP34: 1.140631579 | AQ34: 1.233473684 | AR34: =AR28*AR17 -> 1.326315789 | AS34: 0.432 | AT34: 0.5328 | AU34: 0.6336 | AV34: 0.7344 | AW34: 0.8352 | AX34: 0.936 | AY34: 1.0368 | AZ34: 1.1376 | BA34: 1.2384 | BB34: 1.3392 | BC34: 1.44 | BD34: 0.4725 | BE34: 0.58275 | BF34: 0.693 | BG34: 0.80325 | BH34: 0.9135 | BI34: 1.02375 | BJ34: 1.134 | BK34: 1.24425 | BL34: 1.3545 | BM34: 1.46475 | BN34: 1.575
E36: Total minutes, adjusted for cost | F36: =SUM(F31:F35) -> 9.383157895 | G36: =SUM(G31:G35) -> 0 | H36: =SUM(H31:H35) -> 0 | I36: =SUM(I31:I35) -> 0 | J36: =SUM(J31:J35) -> 0 | L36: =SUM(L31:L35) -> 8.943636364 | M36: 8.845636364 | N36: 8.747636364 | O36: 8.649636364 | P36: 8.551636364 | Q36: 8.453636364 | R36: 8.355636364 | S36: 8.257636364 | T36: 8.159636364 | U36: 8.061636364 | V36: 7.963636364 | W36: 9.59804878 | X36: 9.492878049 | Y36: 9.387707317 | Z36: 9.282536585 | AA36: 9.177365854 | AB36: 9.072195122 | AC36: 8.96702439 | AD36: 8.861853659 | AE36: 8.756682927 | AF36: 8.651512195 | AG36: 8.546341463 | AH36: 10.35578947 | AI36: 10.24231579 | AJ36: 10.12884211 | AK36: 10.01536842 | AL36: 9.901894737 | AM36: 9.788421053 | AN36: 9.674947368 | AO36: 9.561473684 | AP36: 9.448 | AQ36: 9.334526316 | AR36: 9.221052632 | AS36: 11.24342857 | AT36: 11.12022857 | AU36: 10.99702857 | AV36: 10.87382857 | AW36: 10.75062857 | AX36: 10.62742857 | AY36: 10.50422857 | AZ36: 10.38102857 | BA36: 10.25782857 | BB36: 10.13462857 | BC36: 10.01142857 | BD36: 12.2975 | BE36: 12.16275 | BF36: 12.028 | BG36: 11.89325 | BH36: 11.7585 | BI36: 11.62375 | BJ36: 11.489 | BK36: 11.35425 | BL36: 11.2195 | BM36: 11.08475 | BN36: 10.95
E38: Conventional Consultation Variables
E39: ="Proportion of conventional GP consultations who have telephone first" -> Proportion of conventional GP consultations who have telephone first | F39: ='Upper and Lower Limits'!P5 -> 0.14 | G39: ='Upper and Lower Limits'!Q5 -> 0.14 | H39: ='Upper and Lower Limits'!R5 -> 0.14 | I39: =$F39-(($F39-$G39)/2) -> 0.14 | J39: =$F39+(($H39-$F39)/2) -> 0.14 | K39: =(H39-G39)/10 -> 0 | L39: =IF($D39="X",($G39+($K39*(L$7-1))),IF($D39="S",($G39),$F39)) -> 0.14 | M39: 0.14 | N39: 0.14 | O39: 0.14 | P39: 0.14 | Q39: 0.14 | R39: 0.14 | S39: 0.14 | T39: 0.14 | U39: 0.14 | V39: 0.14 | W39: =IF($D39="X",($G39+($K39*(W$7-1))),IF($D39="S",($I39),$F39)) -> 0.14 | X39: 0.14 | Y39: 0.14 | Z39: 0.14 | AA39: 0.14 | AB39: 0.14 | AC39: 0.14 | AD39: 0.14 | AE39: 0.14 | AF39: 0.14 | AG39: 0.14 | AH39: =IF($D39="X",($G39+($K39*(AH$7-1))),IF($D39="S",($F39),$F39)) -> 0.14 | AI39: 0.14 | AJ39: 0.14 | AK39: 0.14 | AL39: 0.14 | AM39: 0.14 | AN39: 0.14 | AO39: 0.14 | AP39: 0.14 | AQ39: 0.14 | AR39: 0.14 | AS39: =IF($D39="X",($G39+($K39*(AS$7-1))),IF($D39="S",($J39),$F39)) -> 0.14 | AT39: 0.14 | AU39: 0.14 | AV39: 0.14 | AW39: 0.14 | AX39: 0.14 | AY39: 0.14 | AZ39: 0.14 | BA39: 0.14 | BB39: 0.14 | BC39: 0.14 | BD39: =IF($D39="X",($G39+($K39*(BD$7-1))),IF($D39="S",($H39),$F39)) -> 0.14 | BE39: 0.14 | BF39: 0.14 | BG39: 0.14 | BH39: 0.14 | BI39: 0.14 | BJ39: 0.14 | BK39: 0.14 | BL39: 0.14 | BM39: 0.14 | BN39: 0.14
D40: =IF(E40=X_axis_txt,"X", IF(E40=legend_txt,"S","")) ->  | E40: =IF(AltCon_txt='Upper and Lower Limits'!$D$14,'Sensitivity Analysis'!E15,"Time on telephone call") -> Time on telephone call | F40: ='Upper and Lower Limits'!P8 -> 5 | G40: ='Upper and Lower Limits'!Q8 -> 4 | H40: ='Upper and Lower Limits'!R8 -> 6 | I40: 4.5 | J40: 5.5 | K40: =(H40-G40)/10 -> 0.2 | L40: 5 | M40: 5 | N40: 5 | O40: 5 | P40: 5 | Q40: 5 | R40: 5 | S40: 5 | T40: 5 | U40: 5 | V40: 5 | W40: 5 | X40: 5 | Y40: 5 | Z40: 5 | AA40: 5 | AB40: 5 | AC40: 5 | AD40: 5 | AE40: 5 | AF40: 5 | AG40: 5 | AH40: 5 | AI40: 5 | AJ40: 5 | AK40: 5 | AL40: 5 | AM40: 5 | AN40: 5 | AO40: 5 | AP40: 5 | AQ40: 5 | AR40: 5 | AS40: 5 | AT40: 5 | AU40: 5 | AV40: 5 | AW40: 5 | AX40: 5 | AY40: 5 | AZ40: 5 | BA40: 5 | BB40: 5 | BC40: 5 | BD40: 5 | BE40: 5 | BF40: 5 | BG40: 5 | BH40: 5 | BI40: 5 | BJ40: 5 | BK40: 5 | BL40: 5 | BM40: 5 | BN40: 5
E41: =IF(AltCon_txt='Upper and Lower Limits'!$D$14,E14,"Percent conventional phone calls managed without further assessment") -> Percent conventional phone calls managed without further assessment | F41: ='Upper and Lower Limits'!P6 -> 0.8 | G41: ='Upper and Lower Limits'!Q6 -> 0.1 | H41: ='Upper and Lower Limits'!R6 -> 0.9 | I41: =$F41-(($F41-$G41)/2) -> 0.45 | J41: =$F41+(($H41-$F41)/2) -> 0.85 | K41: =(H41-G41)/10 -> 0.08 | L41: 0.8 | M41: 0.8 | N41: 0.8 | O41: 0.8 | P41: 0.8 | Q41: 0.8 | R41: 0.8 | S41: 0.8 | T41: 0.8 | U41: 0.8 | V41: 0.8 | W41: 0.8 | X41: 0.8 | Y41: 0.8 | Z41: 0.8 | AA41: 0.8 | AB41: 0.8 | AC41: 0.8 | AD41: 0.8 | AE41: 0.8 | AF41: 0.8 | AG41: 0.8 | AH41: 0.8 | AI41: 0.8 | AJ41: 0.8 | AK41: 0.8 | AL41: 0.8 | AM41: 0.8 | AN41: 0.8 | AO41: 0.8 | AP41: 0.8 | AQ41: 0.8 | AR41: 0.8 | AS41: 0.8 | AT41: 0.8 | AU41: 0.8 | AV41: 0.8 | AW41: 0.8 | AX41: 0.8 | AY41: 0.8 | AZ41: 0.8 | BA41: 0.8 | BB41: 0.8 | BC41: 0.8 | BD41: 0.8 | BE41: 0.8 | BF41: 0.8 | BG41: 0.8 | BH41: 0.8 | BI41: 0.8 | BJ41: 0.8 | BK41: 0.8 | BL41: 0.8 | BM41: 0.8 | BN41: 0.8
E42: =E17 -> GP F2F time | F42: =F17 -> 9 | G42: =G17 -> 9 | H42: =H17 -> 9 | I42: 9 | J42: 9 | K42: =(H42-G42)/10 -> 0 | L42: 9 | M42: 9 | N42: 9 | O42: 9 | P42: 9 | Q42: 9 | R42: 9 | S42: 9 | T42: 9 | U42: 9 | V42: 9 | W42: 9 | X42: 9 | Y42: 9 | Z42: 9 | AA42: 9 | AB42: 9 | AC42: 9 | AD42: 9 | AE42: 9 | AF42: 9 | AG42: 9 | AH42: 9 | AI42: 9 | AJ42: 9 | AK42: 9 | AL42: 9 | AM42: 9 | AN42: 9 | AO42: 9 | AP42: 9 | AQ42: 9 | AR42: 9 | AS42: 9 | AT42: 9 | AU42: 9 | AV42: 9 | AW42: 9 | AX42: 9 | AY42: 9 | AZ42: 9 | BA42: 9 | BB42: 9 | BC42: 9 | BD42: 9 | BE42: 9 | BF42: 9 | BG42: 9 | BH42: 9 | BI42: 9 | BJ42: 9 | BK42: 9 | BL42: 9 | BM42: 9 | BN42: 9
E45: conventional route (telephone as exception)
B46: Always zero for conventional | D46: Process 1 | E46: % going through digital triage
D47: Process 2 | E47: proportion managed through conventional route by doctor | F47: =(1-F39) -> 0.86 | G47: =(1-G39) -> 0.86 | H47: =(1-H39) -> 0.86 | I47: =(1-I39) -> 0.86 | J47: =(1-J39) -> 0.86 | L47: =(1-L39) -> 0.86 | M47: 0.86 | N47: 0.86 | O47: 0.86 | P47: 0.86 | Q47: 0.86 | R47: 0.86 | S47: 0.86 | T47: 0.86 | U47: 0.86 | V47: 0.86 | W47: 0.86 | X47: 0.86 | Y47: 0.86 | Z47: 0.86 | AA47: 0.86 | AB47: 0.86 | AC47: 0.86 | AD47: 0.86 | AE47: 0.86 | AF47: 0.86 | AG47: 0.86 | AH47: 0.86 | AI47: 0.86 | AJ47: 0.86 | AK47: 0.86 | AL47: 0.86 | AM47: 0.86 | AN47: 0.86 | AO47: 0.86 | AP47: 0.86 | AQ47: 0.86 | AR47: 0.86 | AS47: 0.86 | AT47: 0.86 | AU47: 0.86 | AV47: 0.86 | AW47: 0.86 | AX47: 0.86 | AY47: 0.86 | AZ47: 0.86 | BA47: 0.86 | BB47: 0.86 | BC47: 0.86 | BD47: 0.86 | BE47: 0.86 | BF47: 0.86 | BG47: 0.86 | BH47: 0.86 | BI47: 0.86 | BJ47: 0.86 | BK47: 0.86 | BL47: 0.86 | BM47: 0.86 | BN47: 0.86
D48: Process 3 | E48: Proportion managed through new route (always GP) | F48: =F39 -> 0.14 | G48: =G39 -> 0.14 | H48: =H39 -> 0.14 | I48: =I39 -> 0.14 | J48: =J39 -> 0.14 | L48: =L39 -> 0.14 | M48: 0.14 | N48: 0.14 | O48: 0.14 | P48: 0.14 | Q48: 0.14 | R48: 0.14 | S48: 0.14 | T48: 0.14 | U48: 0.14 | V48: 0.14 | W48: 0.14 | X48: 0.14 | Y48: 0.14 | Z48: 0.14 | AA48: 0.14 | AB48: 0.14 | AC48: 0.14 | AD48: 0.14 | AE48: 0.14 | AF48: 0.14 | AG48: 0.14 | AH48: 0.14 | AI48: 0.14 | AJ48: 0.14 | AK48: 0.14 | AL48: 0.14 | AM48: 0.14 | AN48: 0.14 | AO48: 0.14 | AP48: 0.14 | AQ48: 0.14 | AR48: 0.14 | AS48: 0.14 | AT48: 0.14 | AU48: 0.14 | AV48: 0.14 | AW48: 0.14 | AX48: 0.14 | AY48: 0.14 | AZ48: 0.14 | BA48: 0.14 | BB48: 0.14 | BC48: 0.14 | BD48: 0.14 | BE48: 0.14 | BF48: 0.14 | BG48: 0.14 | BH48: 0.14 | BI48: 0.14 | BJ48: 0.14 | BK48: 0.14 | BL48: 0.14 | BM48: 0.14 | BN48: 0.14
D49: Process 4 | E49: proportion managed through f2f following telephone by doctor (or following nurse consultation) | F49: =F48*(1-F41) -> 0.028 | G49: =G48*(1-G41) -> 0.126 | H49: =H48*(1-H41) -> 0.014 | I49: =I48*(1-I41) -> 0.077 | J49: =J48*(1-J41) -> 0.021 | L49: =L48*(1-L41) -> 0.028 | M49: 0.028 | N49: 0.028 | O49: 0.028 | P49: 0.028 | Q49: 0.028 | R49: 0.028 | S49: 0.028 | T49: 0.028 | U49: 0.028 | V49: 0.028 | W49: 0.028 | X49: 0.028 | Y49: 0.028 | Z49: 0.028 | AA49: 0.028 | AB49: 0.028 | AC49: 0.028 | AD49: 0.028 | AE49: 0.028 | AF49: 0.028 | AG49: 0.028 | AH49: 0.028 | AI49: 0.028 | AJ49: 0.028 | AK49: 0.028 | AL49: 0.028 | AM49: 0.028 | AN49: 0.028 | AO49: 0.028 | AP49: 0.028 | AQ49: 0.028 | AR49: 0.028 | AS49: 0.028 | AT49: 0.028 | AU49: 0.028 | AV49: 0.028 | AW49: 0.028 | AX49: 0.028 | AY49: 0.028 | AZ49: 0.028 | BA49: 0.028 | BB49: 0.028 | BC49: 0.028 | BD49: 0.028 | BE49: 0.028 | BF49: 0.028 | BG49: 0.028 | BH49: 0.028 | BI49: 0.028 | BJ49: 0.028 | BK49: 0.028 | BL49: 0.028 | BM49: 0.028 | BN49: 0.028
E52: Minutes per patient contact - conventional route: adjusted for cost
D53: Process 0 | E53: % going through digital triage
D54: Process 1 | E54: proportion managed through conventional route by doctor | F54: =F47*F42 -> 7.74 | G54: =G47*G42 -> 7.74 | H54: 7.74 | I54: 7.74 | J54: 7.74 | L54: =L47*L42 -> 7.74 | M54: 7.74 | N54: 7.74 | O54: 7.74 | P54: 7.74 | Q54: 7.74 | R54: 7.74 | S54: 7.74 | T54: 7.74 | U54: 7.74 | V54: 7.74 | W54: 7.74 | X54: 7.74 | Y54: 7.74 | Z54: 7.74 | AA54: 7.74 | AB54: 7.74 | AC54: 7.74 | AD54: 7.74 | AE54: 7.74 | AF54: 7.74 | AG54: 7.74 | AH54: 7.74 | AI54: 7.74 | AJ54: 7.74 | AK54: 7.74 | AL54: 7.74 | AM54: 7.74 | AN54: 7.74 | AO54: 7.74 | AP54: 7.74 | AQ54: 7.74 | AR54: 7.74 | AS54: 7.74 | AT54: 7.74 | AU54: 7.74 | AV54: 7.74 | AW54: 7.74 | AX54: 7.74 | AY54: 7.74 | AZ54: 7.74 | BA54: 7.74 | BB54: 7.74 | BC54: 7.74 | BD54: 7.74 | BE54: 7.74 | BF54: 7.74 | BG54: 7.74 | BH54: 7.74 | BI54: 7.74 | BJ54: 7.74 | BK54: 7.74 | BL54: 7.74 | BM54: 7.74 | BN54: 7.74
D55: Process 3 | E55: Proportion managed through new route (always GP) | F55: =F48*F40 -> 0.7 | G55: =G48*G40 -> 0.56 | H55: 0.84 | I55: 0.63 | J55: 0.77 | L55: =L48*L40 -> 0.7 | M55: 0.7 | N55: 0.7 | O55: 0.7 | P55: 0.7 | Q55: 0.7 | R55: 0.7 | S55: 0.7 | T55: 0.7 | U55: 0.7 | V55: 0.7 | W55: 0.7 | X55: 0.7 | Y55: 0.7 | Z55: 0.7 | AA55: 0.7 | AB55: 0.7 | AC55: 0.7 | AD55: 0.7 | AE55: 0.7 | AF55: 0.7 | AG55: 0.7 | AH55: 0.7 | AI55: 0.7 | AJ55: 0.7 | AK55: 0.7 | AL55: 0.7 | AM55: 0.7 | AN55: 0.7 | AO55: 0.7 | AP55: 0.7 | AQ55: 0.7 | AR55: 0.7 | AS55: 0.7 | AT55: 0.7 | AU55: 0.7 | AV55: 0.7 | AW55: 0.7 | AX55: 0.7 | AY55: 0.7 | AZ55: 0.7 | BA55: 0.7 | BB55: 0.7 | BC55: 0.7 | BD55: 0.7 | BE55: 0.7 | BF55: 0.7 | BG55: 0.7 | BH55: 0.7 | BI55: 0.7 | BJ55: 0.7 | BK55: 0.7 | BL55: 0.7 | BM55: 0.7 | BN55: 0.7
D56: Process 4 | E56: proportion managed through f2f following new route by doctor | F56: =F49*F42 -> 0.252 | G56: =G49*G42 -> 1.134 | H56: 0.126 | I56: 0.693 | J56: 0.189 | L56: =L49*L42 -> 0.252 | M56: 0.252 | N56: 0.252 | O56: 0.252 | P56: 0.252 | Q56: 0.252 | R56: 0.252 | S56: 0.252 | T56: 0.252 | U56: 0.252 | V56: 0.252 | W56: 0.252 | X56: 0.252 | Y56: 0.252 | Z56: 0.252 | AA56: 0.252 | AB56: 0.252 | AC56: 0.252 | AD56: 0.252 | AE56: 0.252 | AF56: 0.252 | AG56: 0.252 | AH56: 0.252 | AI56: 0.252 | AJ56: 0.252 | AK56: 0.252 | AL56: 0.252 | AM56: 0.252 | AN56: 0.252 | AO56: 0.252 | AP56: 0.252 | AQ56: 0.252 | AR56: 0.252 | AS56: 0.252 | AT56: 0.252 | AU56: 0.252 | AV56: 0.252 | AW56: 0.252 | AX56: 0.252 | AY56: 0.252 | AZ56: 0.252 | BA56: 0.252 | BB56: 0.252 | BC56: 0.252 | BD56: 0.252 | BE56: 0.252 | BF56: 0.252 | BG56: 0.252 | BH56: 0.252 | BI56: 0.252 | BJ56: 0.252 | BK56: 0.252 | BL56: 0.252 | BM56: 0.252 | BN56: 0.252
E58: Total minutes of conventional, without any additional access inflation | F58: =SUM(F54:F56) -> 8.692 | G58: =SUM(G54:G56) -> 9.434 | H58: 8.706 | I58: 9.063 | J58: 8.699 | K58: =SUM(K54:K56) -> 0 | L58: 8.692 | M58: 8.692 | N58: 8.692 | O58: 8.692 | P58: 8.692 | Q58: 8.692 | R58: 8.692 | S58: 8.692 | T58: 8.692 | U58: 8.692 | V58: 8.692 | W58: 8.692 | X58: 8.692 | Y58: 8.692 | Z58: 8.692 | AA58: 8.692 | AB58: 8.692 | AC58: 8.692 | AD58: 8.692 | AE58: 8.692 | AF58: 8.692 | AG58: 8.692 | AH58: 8.692 | AI58: 8.692 | AJ58: 8.692 | AK58: 8.692 | AL58: 8.692 | AM58: 8.692 | AN58: 8.692 | AO58: 8.692 | AP58: 8.692 | AQ58: 8.692 | AR58: 8.692 | AS58: 8.692 | AT58: 8.692 | AU58: 8.692 | AV58: 8.692 | AW58: 8.692 | AX58: 8.692 | AY58: 8.692 | AZ58: 8.692 | BA58: 8.692 | BB58: 8.692 | BC58: 8.692 | BD58: 8.692 | BE58: 8.692 | BF58: 8.692 | BG58: 8.692 | BH58: 8.692 | BI58: 8.692 | BJ58: 8.692 | BK58: 8.692 | BL58: 8.692 | BM58: 8.692 | BN58: 8.692
E60: workload cost of new model as % of conventional | F60: =F36/F58 -> 1.079516555 | G60: =G36/G58 -> 0 | H60: =H36/H58 -> 0 | I60: =I36/I58 -> 0 | J60: =J36/J58 -> 0 | L60: =L36/L58 -> 1.028950341 | M60: 1.017675606 | N60: 1.00640087 | O60: 0.9951261348 | P60: 0.9838513994 | Q60: 0.972576664 | R60: 0.9613019286 | S60: 0.9500271932 | T60: 0.9387524579 | U60: 0.9274777225 | V60: 0.9162029871 | W60: 1.10423939 | X60: 1.092139674 | Y60: 1.080039958 | Z60: 1.067940242 | AA60: 1.055840526 | AB60: 1.04374081 | AC60: 1.031641094 | AD60: 1.019541378 | AE60: 1.007441662 | AF60: 0.9953419461 | AG60: 0.98324223 | AH60: 1.191416184 | AI60: 1.178361228 | AJ60: 1.165306271 | AK60: 1.152251314 | AL60: 1.139196357 | AM60: 1.1261414 | AN60: 1.113086444 | AO60: 1.100031487 | AP60: 1.08697653 | AQ60: 1.073921573 | AR60: 1.060866617 | AS60: 1.293537571 | AT60: 1.279363618 | AU60: 1.265189665 | AV60: 1.251015712 | AW60: 1.236841759 | AX60: 1.222667806 | AY60: 1.208493853 | AZ60: 1.1943199 | BA60: 1.180145947 | BB60: 1.165971994 | BC60: 1.151798041 | BD60: 1.414806719 | BE60: 1.399303958 | BF60: 1.383801197 | BG60: 1.368298435 | BH60: 1.352795674 | BI60: 1.337292913 | BJ60: 1.321790152 | BK60: 1.306287391 | BL60: 1.29078463 | BM60: 1.275281868 | BN60: 1.259779107
F61: =F60-1 -> 0.07951655485 | L61: s=lower estimate | W61: s=lower mid estimate | AH61: s=base case estimate | AS61: s=upper mid | BD61: s=upper
G62: X axis
H63: 9 | I63: 10 | J63: 11 | K63: 12 | L63: 13 | M63: 14 | N63: 15 | O63: 16 | P63: 17 | Q63: 18 | R63: 19
E64: data series lines | H64: =VLOOKUP("X",$D$7:$W$17,H63,FALSE) -> 0.3 | I64: 0.37 | J64: 0.44 | K64: 0.51 | L64: 0.58 | M64: 0.65 | N64: 0.72 | O64: 0.79 | P64: 0.86 | Q64: 0.93 | R64: 1
E65: =VLOOKUP("S",$D$7:$W$17,2,FALSE) -> e-consult supply-related demand | F65: lower estimate | G65: =VLOOKUP("S",$D$7:$K$17,4,FALSE) -> -0.1 | H65: =L60 -> 1.028950341 | I65: =M60 -> 1.017675606 | J65: =N60 -> 1.00640087 | K65: =O60 -> 0.9951261348 | L65: =P60 -> 0.9838513994 | M65: =Q60 -> 0.972576664 | N65: =R60 -> 0.9613019286 | O65: =S60 -> 0.9500271932 | P65: =T60 -> 0.9387524579 | Q65: 0.9274777225 | R65: 0.9162029871
F66: lower mid | G66: =VLOOKUP("S",$D$7:$K$17,6,FALSE) -> -0.025 | H66: =W60 -> 1.10423939 | I66: =X60 -> 1.092139674 | J66: =Y60 -> 1.080039958 | K66: =Z60 -> 1.067940242 | L66: =AA60 -> 1.055840526 | M66: 1.04374081 | N66: 1.031641094 | O66: 1.019541378 | P66: 1.007441662 | Q66: =AF60 -> 0.9953419461 | R66: 0.98324223
F67: baseline estimate | G67: =VLOOKUP("S",$D$7:$K$17,3,FALSE) -> 0.05 | H67: =AH60 -> 1.191416184 | I67: 1.178361228 | J67: =AJ60 -> 1.165306271 | K67: =AK60 -> 1.152251314 | L67: =AL60 -> 1.139196357 | M67: 1.1261414 | N67: 1.113086444 | O67: 1.100031487 | P67: 1.08697653 | Q67: =AQ60 -> 1.073921573 | R67: 1.060866617
F68: upper mid | G68: =VLOOKUP("S",$D$7:$K$17,7,FALSE) -> 0.125 | H68: =AS60 -> 1.293537571 | I68: =AT60 -> 1.279363618 | J68: =AU60 -> 1.265189665 | K68: =AV60 -> 1.251015712 | L68: =AW60 -> 1.236841759 | M68: 1.222667806 | N68: 1.208493853 | O68: 1.1943199 | P68: 1.180145947 | Q68: =BB60 -> 1.165971994 | R68: 1.151798041
F69: upper estimate | G69: =VLOOKUP("S",$D$7:$K$17,5,FALSE) -> 0.2 | H69: =BD60 -> 1.414806719 | I69: =BE60 -> 1.399303958 | J69: =BF60 -> 1.383801197 | K69: =BG60 -> 1.368298435 | L69: =BH60 -> 1.352795674 | M69: 1.337292913 | N69: 1.321790152 | O69: 1.306287391 | P69: 1.29078463 | Q69: =BM60 -> 1.275281868 | R69: 1.259779107
E70: highlight base case on x axis
E71: Legend format | F71: =INDEX($C$8:$C$17,MATCH("S",$D$8:$D$17,0),1) -> percent
E72: X-axis format | F72: =INDEX($C$8:$C$17,MATCH("X",$D$8:$D$17,0),1) -> percent
H75: =H64 -> 0.3 | I75: =I64 -> 0.37 | J75: 0.44 | K75: 0.51 | L75: 0.58 | M75: 0.65 | N75: 0.72 | O75: 0.79 | P75: 0.86 | Q75: 0.93 | R75: 1
F76: lower estimate | G76: =G65 -> -0.1 | H76: =H65-1 -> 0.02895034096 | I76: =I65-1 -> 0.01767560557 | J76: 0.006400870184 | K76: -0.004873865205 | L76: -0.01614860059 | M76: -0.02742333598 | N76: -0.03869807137 | O76: -0.04997280676 | P76: -0.06124754215 | Q76: -0.07252227754 | R76: -0.08379701293
F77: lower mid | G77: =G66 -> -0.025 | H77: =H66-1 -> 0.1042393903 | I77: 0.09213967427 | J77: 0.08003995825 | K77: 0.06794024222 | L77: 0.05584052619 | M77: 0.04374081016 | N77: 0.03164109414 | O77: 0.01954137811 | P77: 0.007441662083 | Q77: -0.004658053944 | R77: -0.01675776997
F78: baseline estimate | G78: =G67 -> 0.05 | H78: 0.1914161843 | I78: 0.1783612275 | J78: 0.1653062707 | K78: 0.152251314 | L78: 0.1391963572 | M78: 0.1261414004 | N78: 0.1130864437 | O78: 0.1000314869 | P78: 0.08697653014 | Q78: 0.07392157338 | R78: 0.06086661661
F79: upper mid | G79: =G68 -> 0.125 | H79: 0.2935375715 | I79: 0.2793636184 | J79: 0.2651896654 | K79: 0.2510157123 | L79: 0.2368417593 | M79: 0.2226678062 | N79: 0.2084938531 | O79: 0.1943199001 | P79: 0.180145947 | Q79: 0.165971994 | R79: 0.1517980409
F80: upper estimate | G80: =G69 -> 0.2 | H80: 0.4148067188 | I80: 0.3993039577 | J80: 0.3838011965 | K80: 0.3682984353 | L80: 0.3527956742 | M80: 0.337292913 | N80: 0.3217901519 | O80: 0.3062873907 | P80: 0.2907846295 | Q80: 0.2752818684 | R80: 0.2597791072

Sheet Output - Chart (hidden)
N2: ='User Inputs'!C2 -> Which access route do you wish to model? (select drop-down) | O2: =AltCon_txt & " compared to conventional: Impact on primary care workload" -> e-consult first compared to conventional: Impact on primary care workload
N3: ='User Inputs'!C4 -> Select the x-axis for the chart (e-consult first variables in blue) | O3: =X_axis_txt -> Phone via e-consult
N4: ='User Inputs'!C5 -> Select the legend for the chart (e-consult first variables in blue) | O4: =legend_txt -> e-consult supply-related demand
N5: Y axis variable | O5: Workload compared to conventional care
N6: Workload compared to conventional care, value | O6: ='Sensitivity Analysis'!F61 -> 0.07951655485
N13: base case variable and value
N14: =O3 -> Phone via e-consult | O14: ='Sensitivity Analysis'!BO19 -> 0.9
